Cogmind - Beta 14 @@@ ROGUE MODE // 2024.09.03 @ 14:45:48 Player: star Result: Self-destructed Performance ------------- Evolutions (4) 2000 Regions Visited (5) 1000 Robots Destroyed (52) 260 Value Destroyed (1585) 1585 Prototype IDs (12) 240 Alien Tech Used (0) 0 Bonus (300) 300 TOTAL SCORE: 5385 Bonus ------- Registered with UFD 300 Cogmind --------- Core Integrity 482/850 Matter 232/300 Energy 100/100 System Corruption 8% Temperature Cool (0) Movement Core (150) Ox2 Location -6/Factory Parts ------- > --- POWER (2) -------- (None) > --- PROPULSION (4) --- (None) > --- UTILITY (5) ------ Scrap Suit Makeshift Targeting Computer > --- WEAPON (4) ------- Heavy Machine Gun > --- INVENTORY (5) ---- Scrap Suit Advanced Heat Sink Makeshift Light Armor Plating Mace Peak State ------------ > --- POWER ------------ Micro Nuclear Core > --- PROPULSION ------- Overtuned Huge Scrapsphere > --- UTILITY ---------- Scrap Suit Cryofiber Web Humpback > --- WEAPON ----------- Particle Cannon Phase Cannon Gauss Rifle Improved Proton Missile Launcher > --- INVENTORY -------- Scrap Suit Advanced Heat Sink High-capacity Matter Pod 0b10 Decoder Chip [Looter] Targeting Computer Makeshift Targeting Computer Advanced Targeting Computer Makeshift Light Armor Plating Makeshift Light Armor Plating Layered Light Armor Plating Makeshift System Restoration Module CPS Tube CPS Tube CPS Tube CPS Tube Mace [Rating: 50] Favorites ----------- Power Makeshift Power Source Engine Makeshift Power Source Power Core Light Nuclear Core Propulsion Overtuned Huge Scrapsphere Leg Carbon-fiber Leg Wheel Overtuned Huge Scrapsphere Utility Huge Storage Unit Device Disposable Heat Sink Storage Huge Storage Unit Processor Makeshift Targeting Computer Protection Core Shielding Weapon Particle Cannon Energy Gun EM Shotgun Energy Cannon Particle Cannon Ballistic Gun Subdweller Machine Gun Ballistic Cannon Flak Cannon Launcher Grenade Launcher Special Weapon Enhanced Flamer Impact Weapon Mace Build | -11 -10 -10 -8 -8 -6 ------- Run | Yrd Mat Sub Rec Scr Fac Slots Evolved 8 | . . . . . 8 Power 1 | . . . . . 1 Propulsion 2 | . . . . . 2 Utility 3 | . . . . . 3 Weapon 2 | . . . . . 2 Parts Attached 96 | 7 8 49 11 4 17 Power 6 | 1 1 1 . . 3 Engine 2 | 1 . 1 . . . Core 4 | . 1 . . . 3 Reactor . | . . . . . . Propulsion 28 | 2 1 16 6 3 . Treads . | . . . . . . Leg 1 | . . . 1 . . Wheel 27 | 2 1 16 5 3 . Hover . | . . . . . . Flight . | . . . . . . Utility 21 | 1 2 10 2 1 5 Device 9 | . . 5 . . 4 Storage 6 | 1 1 2 1 1 . Processor 1 | . . . . . 1 Hackware . | . . . . . . Protection 5 | . 1 3 1 . . Artifact . | . . . . . . Weapon 41 | 3 4 22 3 . 9 Energy Gun 9 | 2 . 5 1 . 1 Energy Cannon 11 | . . 10 . . 1 Ballistic Gun 6 | 1 2 1 1 . 1 Ballistic Cannon 1 | . . . 1 . . Launcher 6 | . 2 2 . . 2 Special Weapon 7 | . . 4 . . 3 Impact Weapon 1 | . . . . . 1 Slashing Weapon . | . . . . . . Piercing Weapon . | . . . . . . Special Melee Weapon . | . . . . . . Unidentified Prototypes . | . . . . . . Corrupted Parts 1 | . . . . . 1 System Corruption 7 | . . . . . 7 Parts Lost 19 | . . 8 . . 11 Power 3 | . . 1 . . 2 Propulsion 4 | . . 4 . . . Utility 3 | . . 1 . . 2 Weapon 9 | . . 2 . . 7 Highest Loss Streak 8 | . . 5 . . 8 To Critical Strikes . | . . . . . . Average Slot Usage (%) 53 | . 95 92 70 29 49 Engine 2 | . 7 8 . . . Wheel 19 | . 28 26 27 15 5 Device 1 | . . 6 . . 11 Storage 12 | . 14 13 3 14 5 Protection 2 | . 10 6 9 . . Energy Gun 3 | . 14 5 13 . 2 Energy Cannon 3 | . . 13 . . 7 Ballistic Gun 2 | . 13 3 6 . 4 Special Weapon 1 | . . 4 . . 2 Peak Build Rating 50 | 6 11 22 16 21 50 Average Rating 17 | 4 9 17 12 18 41 On Entrance 11 | . 6 11 16 14 21 Naked Turns . | . . . . . . Heaviest Build 234 | 11 91 98 93 200 234 Greatest Support 40 | 26 26 40 40 36 20 Greatest Overweight (x) 66 | 3 4 9 4 66 11 Average Overweight (x) 4 | . 2 2 . 8 10 Largest Inventory Capacity 35 | 8 25 25 25 35 35 Average Capacity 27 | 7 22 24 10 31 34 Most Carried 25 | 2 17 25 25 25 20 Average Carried 19 | . 12 19 9 22 17 Final Capacity 35 | 8 25 25 25 35 5 Final Carried 25 | 2 17 25 25 22 5 Class Distribution -------------------- 50% | Mutant 39% | Hauler-Mutant 4% | Subdweller-Mutant 3% | Hauler-Gunner Dominant Class ---------------- Mutant | -10/Materials Mutant | -10/Subcaves Subdweller-Mutant | -8/Recycling Hauler-Mutant | -8/Scraptown Hauler-Gunner | -6/Factory Resources | -11 -10 -10 -8 -8 -6 ----------- Run | Yrd Mat Sub Rec Scr Fac Matter Collected 1584 | 217 188 582 310 136 151 Remotely . | . . . . . . Salvage Created 2051 | . 420 938 168 . 525 Parts 123 | . 21 53 20 . 29 Haulers Intercepted 1 | . 1 . . . . Recyclers Shooed . | . . . . . . Parts Field Recycled . | . . . . . . Retrieved Matter . | . . . . . . Parts Self-Destructed 21 | . . 21 . . . Prevented . | . . . . . . Kills | -11 -10 -10 -8 -8 -6 ------- Run | Yrd Mat Sub Rec Scr Fac Combat Hostiles Destroyed 40 | . 10 20 2 . 8 Guns 8 | . 4 2 2 . . Cannons 17 | . . 14 . . 3 AOE 15 | . 6 4 . . 5 Classes Destroyed 14 | . 5 4 . . 5 Builder 8 | . 1 . 4 . 3 Hauler 1 | . 1 . . . . Recycler 2 | . 2 . . . . Watcher 1 | . . . . . 1 Swarmer 9 | . 6 3 . . . Grunt 8 | . 4 1 . . 3 Brawler 1 | . . . . . 1 Sentry 3 | . . 1 2 . . Specialist 2 | . . . . . 2 Hunter 1 | . . . . . 1 Programmer 1 | . . . . . 1 Artisan 1 | . . 1 . . . Cobbler 2 | . . 2 . . . Subdweller 15 | . . 15 . . . Best Kill Streak 7 | . 5 3 2 . 7 Combat Bots Only 3 | . 3 3 1 . 3 Max Kills in Single Turn 6 | . 4 2 1 . 6 Gunslinging . | . . . . . . Exploded 3 | . 3 2 . . 2 Melee . | . . . . . . Uniques/NPCs Destroyed . | . . . . . . Combat | -11 -10 -10 -8 -8 -6 -------- Run | Yrd Mat Sub Rec Scr Fac Hostile Shots Fired 231 | . 24 77 6 . 124 Missed 76 | . 9 19 4 . 44 Damage Taken 3477 | . 225 1211 29 . 2012 Core 616 | . 64 168 16 . 368 Absorbed by Shields . | . . . . . . Redirected to Shielding 16 | . 11 5 . . . Core Remaining (%) 50 | 100 . . . . . Volleys Fired 162 | . 19 106 15 . 22 Largest 4 | . 2 2 2 . 4 Hottest 224 | . 80 160 89 . 224 Shots Fired 316 | . 38 197 27 . 54 Gun 128 | . 34 49 23 . 22 Cannon 155 | . . 127 4 . 24 Launcher 23 | . 4 14 . . 5 Special 10 | . . 7 . . 3 Kinetic 65 | . 15 19 15 . 16 Thermal 177 | . 19 134 . . 24 Explosive 18 | . 4 14 . . . Electromagnetic 53 | . . 30 12 . 11 Robot Hit Streak 25 | . 7 25 9 . 11 Robot Miss Streak 4 | . 1 3 4 . 3 Penetration Max . | . . . . . . Secondary Targets . | . . . . . . Shots Hit Robots 185 | . 25 108 16 . 36 Core Hits 98 | . 23 44 8 . 23 Critical Kills . | . . . . . . Critical Parts Destroyed . | . . . . . . Critical Strikes 3 | . 3 . . . . Burn 3 | . 3 . . . . Melee Attacks . | . . . . . . Impact . | . . . . . . Slashing . | . . . . . . Piercing . | . . . . . . Sneak Attacks . | . . . . . . Combat Hostiles . | . . . . . . Follow-up Attacks . | . . . . . . Damage Inflicted 5343 | . 638 2685 297 . 1723 Guns 1140 | . 254 456 217 . 213 Cannons 2048 | . . 1612 45 . 391 Explosions 2115 | . 384 577 35 . 1119 Melee . | . . . . . . Ramming . | . . . . . . Kinetic 732 | . 91 271 187 . 183 Thermal 2428 | . 163 1777 35 . 453 Explosive 1486 | . 384 452 . . 650 Electromagnetic 697 | . . 185 75 . 437 Impact . | . . . . . . Slashing . | . . . . . . Piercing . | . . . . . . Highest Corruption 8 | . . . . . 8 Average Corruption 1 | . . . . . 1 Corruption Purged . | . . . . . . Corruption Blocked . | . . . . . . Effects 3 | . . . . . 3 Message Errors 1 | . . . . . 1 Matter Fused 1 | . . . . . 1 Weapon Failures 1 | . . . . . 1 Overload Shots . | . . . . . . Overflow Damage 96 | . 8 1 . . 87 Projectiles 8 | . . 1 . . 7 Explosions 88 | . 8 . . . 80 Melee . | . . . . . . Knockbacks 2 | . . . 2 . . Impact . | . . . . . . Kinetic 2 | . . . 2 . . Secondary . | . . . . . . Self-Inflicted Damage 189 | . 16 69 . . 104 Shots 6 | . 1 2 . . 3 Rammed . | . . . . . . Targets Rammed . | . . . . . . Kicked . | . . . . . . Crushed . | . . . . . . Highest Temperature 405 | . 227 405 24 . 150 Average Temperature 64 | . 69 65 13 . 58 Received Heat Transfer 414 | . 111 204 . . 99 Effects 1 | . . 1 . . . Energy Bleed 1 | . . 1 . . . Siege Activations . | . . . . . . Robots Corrupted . | . . . . . . Combat Hostiles . | . . . . . . Parts Fried 1 | . . 1 . . . Impact Corruptions . | . . . . . . Robots Melted . | . . . . . . Combat Hostiles . | . . . . . . Parts Melted 6 | . 2 4 . . . Heat Transferred 4405 | . 703 3097 50 . 555 Parts Sabotaged . | . . . . . . Parts Stolen . | . . . . . . Parts Stripped . | . . . . . . Power Chain Reactions 6 | . . 3 1 . 2 Alert | -11 -10 -10 -8 -8 -6 ------- Run | Yrd Mat Sub Rec Scr Fac Peak Influence 176 | . 170 . 63 . 176 Initial . | . . . . . . Average 61 | . 102 . 17 . 69 Maximum Alert Level . | . . . . . . Low Security (%) 100 | 100 100 . 100 . 100 Level 1 . | . . . . . . Level 2 . | . . . . . . Level 3 . | . . . . . . Level 4 . | . . . . . . Level 5 . | . . . . . . High Security . | . . . . . . Max Security . | . . . . . . Squads Dispatched 5 | . 1 . . . 4 Investigation . | . . . . . . Extermination 1 | . . . . . 1 Reinforcement 4 | . 1 . . . 3 Assault . | . . . . . . Garrison . | . . . . . . Intercept . | . . . . . . Searches Triggered . | . . . . . . Construction Impeded . | . . . . . . Haulers Reinforced . | . . . . . . Active Scanning Responses . | . . . . . . Cargo Convoy Interrupts . | . . . . . . Stealth | -11 -10 -10 -8 -8 -6 --------- Run | Yrd Mat Sub Rec Scr Fac Distress Signals 1 | . 1 . . . . Communications Jammed . | . . . . . . Distress Signals . | . . . . . . Times Spotted 53 | . 16 20 2 . 15 Peak Tracking Total 5 | . 4 3 1 . 5 Tactical Retreats 1 | . . . . . 1 Traps | -11 -10 -10 -8 -8 -6 ------- Run | Yrd Mat Sub Rec Scr Fac Traps Triggered 2 | . 1 1 . . . Indirectly . | . . . . . . Trap Hack Attempts . | . . . . . . Triggered . | . . . . . . Disarmed . | . . . . . . Reprogrammed . | . . . . . . Reused . | . . . . . . Traps Extracted . | . . . . . . Installed . | . . . . . . Triggered . | . . . . . . Machines | -11 -10 -10 -8 -8 -6 ---------- Run | Yrd Mat Sub Rec Scr Fac Machines Disabled 4 | . . . . . 4 Max in Single Turn 3 | . . . . . 3 Machines Repaired . | . . . . . . Machines Dismantled . | . . . . . . Machines Sabotaged . | . . . . . . Overloaded Fab Kills . | . . . . . . Hacking | -11 -10 -10 -8 -8 -6 --------- Run | Yrd Mat Sub Rec Scr Fac Machines Accessed 13 | . . . 7 6 . Terminals 4 | . . . 4 . . Fabricators . | . . . . . . Repair Stations . | . . . . . . Recycling Units 1 | . . . 1 . . Scanalyzers . | . . . . . . Garrison Access . | . . . . . . Total Hacks 70 | . . . 39 31 . Successful 60 | . . . 29 31 . Failed 10 | . . . 10 . . Catastrophic 3 | . . . 3 . . Database Lockouts . | . . . . . . Manual 1 | . . . 1 . . Terminals 14 | . . . 14 . . Fabricators . | . . . . . . Repair Stations . | . . . . . . Recycling Units 1 | . . . 1 . . Scanalyzers . | . . . . . . Garrison Access . | . . . . . . Terminal Hacks 59 | . . . 28 31 . Record 54 | . . . 24 30 . Part Schematic 1 | . . . 1 . . Robot Analysis 2 | . . . 2 . . Security Status 1 | . . . 1 . . Derelict Proto ID Bank 1 | . . . . 1 . Fabricator Hacks . | . . . . . . Repair Station Hacks . | . . . . . . Recycling Unit Hacks . | . . . . . . Scanalyzer . | . . . . . . Garrison Access Hacks . | . . . . . . Unauthorized Hacks 1 | . . . 1 . . Terminals . | . . . . . . Fabricators . | . . . . . . Repair Stations . | . . . . . . Recycling Units 1 | . . . 1 . . Mask 1 | . . . 1 . . Scanalyzers . | . . . . . . Garrison Access . | . . . . . . Data Cores Recovered . | . . . . . . Used . | . . . . . . Hacking Detections 4 | . . . 4 . . Full Trace Events 4 | . . . 4 . . Feedback Events . | . . . . . . Feedback Blocked . | . . . . . . Robot Schematics Acquired . | . . . . . . Robots Built . | . . . . . . Authchips . | . . . . . . Time . | . . . . . . Total Robot Build Rating . | . . . . . . Part Schematics Acquired 1 | . . . 1 . . Parts Built . | . . . . . . Authchips . | . . . . . . Time . | . . . . . . Total Part Build Rating . | . . . . . . Parts Repaired . | . . . . . . Time . | . . . . . . Parts Recycled . | . . . . . . Recycled Matter . | . . . . . . Retrieved Matter . | . . . . . . Retrieved Components . | . . . . . . Parts Scanalyzed . | . . . . . . Part Schematics Acquired . | . . . . . . Parts Damaged . | . . . . . . Bothacking | -11 -10 -10 -8 -8 -6 ------------ Run | Yrd Mat Sub Rec Scr Fac Used RIF Installer . | . . . . . . Robots Hacked . | . . . . . . Non-combat . | . . . . . . Combat . | . . . . . . Robot Hacks Applied . | . . . . . . Relay Couplers Released . | . . . . . . Fabnet Peak Effective % . | . . . . . . Robots Rewired . | . . . . . . Allies Hacked . | . . . . . . Hacks Repelled . | . . . . . . Allies | -11 -10 -10 -8 -8 -6 -------- Run | Yrd Mat Sub Rec Scr Fac Total Allies . | . . . . . . Largest Group . | . . . . . . Highest-Rated Group . | . . . . . . Highest-Rated Ally . | . . . . . . Total Orders . | . . . . . . Ally Attacks . | . . . . . . Total Damage . | . . . . . . Kills . | . . . . . . Allies Corrupted . | . . . . . . Allies Melted . | . . . . . . Intel | -11 -10 -10 -8 -8 -6 ------- Run | Yrd Mat Sub Rec Scr Fac Robot Analysis Total 2 | . . . 2 . . Derelict Logs Recovered 5 | . . 2 . 3 . Drone Launches . | . . . . . . Drone Recoveries . | . . . . . . Exploration | -11 -10 -10 -8 -8 -6 ------------- Run | Yrd Mat Sub Rec Scr Fac Turns Passed 12959 | 40 949 3093 921 7505 451 Spaces Moved 5131 | 29 445 1851 732 1879 195 Core 197 | 9 . . . 186 2 Treads . | . . . . . . Legs . | . . . . . . Wheels 4934 | 20 445 1851 732 1693 193 Hover . | . . . . . . Flight . | . . . . . . Fastest Speed 50 | 50 90 95 95 100 150 Average Speed 227 | 97 126 134 109 396 176 Slowest Speed 3350 | 200 140 215 150 3350 250 Overloaded Moves . | . . . . . . Propulsion Burnouts . | . . . . . . Robots Hopped . | . . . . . . Cave-ins Triggered . | . . . . . . Exploration Rate (%) 55 | 3 69 86 75 93 7 Regions Visited 5 Branch Regions 3 Pre-discovered Areas 3 | . . 1 . 2 . Known Exits Taken . | . . . . . . Unknown Exits Taken 5 | 1 1 1 1 1 . Scrap Searched 11 | . . 8 . 3 . Spaces Dug 9 | . . . . . 9 Terrain Destroyed 155 | . 19 96 5 . 35 Melee . | . . . . . . Projectile 5 | . . 1 . . 4 AOE 150 | . 19 95 5 . 31 Terrain Rammed . | . . . . . . Walls Destroyed . | . . . . . . Machines Disabled . | . . . . . . Actions | -11 -10 -10 -8 -8 -6 --------- Run | Yrd Mat Sub Rec Scr Fac Total 6126 | 37 797 2246 825 1968 253 Wait 571 | . 304 176 33 42 16 Move 5126 | 28 444 1850 731 1878 195 Hop . | . . . . . . Pick Up 115 | 2 17 43 25 26 2 Fast Attach 27 | 6 2 8 3 3 5 Attach 17 | . . 7 1 . 9 Detach 4 | . . 3 . . 1 Swap 52 | 1 6 34 7 1 3 Drop 45 | . 5 12 10 18 . Fire 162 | . 19 106 15 . 22 Melee . | . . . . . . Ram . | . . . . . . Kick . | . . . . . . Crush . | . . . . . . Escape Stasis . | . . . . . . Rewire . | . . . . . . Trap . | . . . . . . Miscellaneous 7 | . . 7 . . . Route ------- -11/Scrapyard -10/Materials (discovered 4 exits: [*Mat x2] / [*Min] / [*Sub]) -10/Subcaves (discovered 3 exits: [*Mat x2] / *Rec) -8/Recycling (discovered 2 exits: [*Fac] / *Scr) -8/Scraptown (discovered 2 exits: [*Fac x2]) -6/Factory (discovered 1 exit: [*Fac]) History --------- Turn | Location | Event 25 | -11/Scrapyard | Discovered new exit (range 15) 41 | -11/Scrapyard | Entered Materials 201 | -10/Materials | Discovered new exit (range 5) 223 | -10/Materials | Discovered new exit (range 15) 309 | -10/Materials | Build established: Mutant 475 | -10/Materials | Discovered new exit (range 15) 959 | -10/Materials | Discovered new exit (range 5) 990 | -10/Materials | Entered Subcaves 994 | -10/Subcaves | A swath of the cavern ceiling suddenly collapsed 1036 | -10/Subcaves | Shifting Twisted Machinery released Sub. Beam Cannon 1043 | -10/Subcaves | Shifting Twisted Machinery released Sub. Optics 1147 | -10/Subcaves | Discovered new exit (range 11) 1728 | -10/Subcaves | Discovered new exit (range 7) 1978 | -10/Subcaves | Shifting Twisted Machinery released Shrapnel Trap 2012 | -10/Subcaves | Shifting Twisted Machinery released Sub. Laser 2173 | -10/Subcaves | Learned location of Zion (-7) 2406 | -10/Subcaves | Discovered new exit (range 12) 2639 | -10/Subcaves | Disturbed a concealed Subdweller 2655 | -10/Subcaves | Core integrity fell below 50% 3318 | -10/Subcaves | Core integrity fell below 20% 3346 | -10/Subcaves | Lost 5 parts (1p2n1u1w) 3390 | -10/Subcaves | Shifting Twisted Machinery released Sub. Beam Cannon 3468 | -10/Subcaves | Shifting Twisted Machinery released Sub. Monowheel 3828 | -10/Subcaves | Learned Materials non-interactive machine intel 4083 | -10/Subcaves | Entered Recycling 4386 | -8/Recycling | Build established: Subdweller-Mutant 4498 | -8/Recycling | Discovered new exit (range 15) 4609 | -8/Recycling | Scanned before Scraplab entrance 4861 | -8/Recycling | Build established: Mutant 5001 | -8/Recycling | Discovered new exit (range 2) 5004 | -8/Recycling | Entered Scraptown 5248 | -8/Scraptown | Visited Comm Corps 5337 | -8/Scraptown | Visited UFD Registry 5338 | -8/Scraptown | Registered with UFD as "Roughcase" 5380 | -8/Scraptown | Visited Awakened 5415 | -8/Scraptown | Visited Shadow of the Wyrm 5478 | -8/Scraptown | Scanned Subdweller tech in exchange for log data 5481 | -8/Scraptown | Learned location of Warlord (-4) 5482 | -8/Scraptown | Learned location of Testing (-3) 5484 | -8/Scraptown | Learned Factory stockpile data 5501 | -8/Scraptown | Discovered new exit (range 7) 5559 | -8/Scraptown | Guru changed UFD alias to "Steelglider" 5601 | -8/Scraptown | Heard Great Nut preacher, LISTEN AND RECITE! 5949 | -8/Scraptown | Visited Cave Peace 6000 | -8/Scraptown | Visited Junk Repository 6041 | -8/Scraptown | Visited Assassins FH 6158 | -8/Scraptown | Visited Chapter 10 6236 | -8/Scraptown | Visited Modified Component R&D 6420 | -8/Scraptown | Visited Scrap Suit Storage 6427 | -8/Scraptown | Found Scrap Suit 6431 | -8/Scraptown | Found Scrap Suit 6462 | -8/Scraptown | Visited Research Penetration Think Tank 6552 | -8/Scraptown | Visited Scrapoid Pod Storage 6569 | -8/Scraptown | Visited Scrapoid Research Area 6627 | -8/Scraptown | Visited Science Guys 6741 | -8/Scraptown | Discovered new exit (range 3) 6995 | -8/Scraptown | Visited Infowarlord's Domain 7230 | -8/Scraptown | Visited LU-1G1's Boring Crew 7333 | -8/Scraptown | Visited Curators Association 7399 | -8/Scraptown | Delivered Scrap Shield to a Scientist 7720 | -8/Scraptown | Build established: Hauler-Mutant 12509 | -8/Scraptown | Entered Factory 12509 | -6/Factory | Evolved 8 slots: Power x1, Propulsion x2, Utility x3, Weapon x2 12549 | -6/Factory | Discovered new exit (range 15) 12938 | -6/Factory | Build established: Hauler-Gunner 12960 | -6/Factory | Self-destructed Last Messages --------------- 12949_ Acquired 32 matter. 12949_ Slug penetrates K-01 Serf. 12949_ K-01 Serf destroyed. 12951_ Slug penetrates Wall. 12952_ Penetrated by Slug. 12952_ R-10 Processor collects Corrupted Lrg. Matter Pod. 12953_ Acquired Corrupted Hvy. Machine Gun. 12953_ Integrated Corrupted Hvy. Machine Gun (+7). 12953_ Complication: Mic. Nuclear Core rejected. 12953_ Complication: Ovr. Huge Scrapsphere rejected. 12954_ Penetrated by Slug. 12954_ Slug penetrates Wall. 12954_ Acquired Mic. Nuclear Core. 12954_ Slug penetrates Wall. 12954_ Slug penetrates Subcomponent Replicator. 12955_ R-10 Processor collects Ovr. Huge Scrapsphere. 12956_ Humpback destroyed. 12956_ R-10 Processor destroyed. 12958_ Mic. Nuclear Core destroyed. 12958_ Penetrated by Slug. Map ----- +----------------------------------------------------+ | | | | | ???????????????##############################????? | | ????????######## # #????? | | ???????## ## # """ #????? | | ########"####### """"""""" # T" #????? | | + # """ #????? | | "###### """"""""" # """ #????? | | " ## =# """ #????? | | #### ## """ # """ #????? | | ####???### "Y # #????? | | #????????# """ # """ """ #????? | | ### #????????# # """ """ #????? | | ??# #????????###+#######+##### """ """ #????? | | ??# #?########## #### ## ###### | | ??# #?# ######+#####+## | | ??# #?# = | | ??# #?# T < | | ??# #?# | | ??# ### #######+####### | | ??# ######### #?????? ????## # | | ??#^ ##??????#########?????? """"???# # | | ??# % ????????????????????? """" ??# # | | ??# %% ##############??????" """" ??# # | | ??# % % h ===!|# #????""" """???## # | | ??# =% h ![%@!!#### """" ""????# | | ??# !# !!!!|/! + """" "?????# | | ??# " !!!!|#### """" "?????# | | ??# [ """ =x=; #???? ?????# | | !!! [ "" ###?????? ???# | | !! % H #?????????? ??### ## | | ! !! # "x #?????#########????# #? | | [ # """" #?????# #####??# #? | | # """ #?????# ##T #### #? | | ??######## ## #?????# # #? | | ?????[???# ?# #?????# # #? | | ?????????# ?###"##########?????# # #? | | ?????????+ ???###??????????????# #+## | | ?????????# ????????????????????# # | | ?????????# #????????????????????######## # | | ?????????# ????????????????????????????# # | | ?????????+ ????????????????????????????# # | | ?????????## ????????????????????????????# + | | ??????????#?????????????????????????????# # "" | | ????????????????????????????????????????# # "" | | ????????????????????????????????????????# # "" | | ????????????????????????????????????????# # | | ????????????????????????????????????????# #### | | ????????????????????????????????????????# #??? | | ????????????????????????????????????????# #??? | +----------------------------------------------------+ Best States ------------- Heat Dissipation 37 Coolant Potential 50 Energy Generation 18 Energy Capacity 170 Matter Stores 300 Matter Capacity 300 Sight Range 16 Terrain Scan Density 10 Base Temperature (-) 100 Armor Coverage 800 Core Shielding 20 Evasion (%) 44 Targeting Accuracy 10 Item Schematics ----------------- Imp. EM Pulse Cannon | -8/Recycling | Hacked Robot Schematics ------------------ None Fabricated ------------ Nothing Alien Tech Used ----------------- None Achievements -------------- None Challenges ------------ None Game ------ Seed CobblerBattleShield Manual? 0 Play Time 01:13:11 Cumulative 68.7 hours Start 2024.09.02 @ 14:21:07 End 2024.09.03 @ 14:45:48 Sessions 3 Manual Loads 0 Difficulty Rogue Special Mode None Game No. 123 Rogue 123 Adventurer 0 Explorer 0 Win Type - Total 0 Types 0/0/0/0/0/0/0/0/0 Lore% 32 Gallery% 45 Achievement% 37 Wizard Run 0 Options --------- Layout 0 ASCII 0 Keyboard 0 Movement Numpad Keybinds 0 Fullscreen 2 Font 18/SmallcapsGlow Map View 76x50 Zoom Use 0% Tactical HUD 1 Map Filters NONE Filters NONE Steam 1 RUN: ecabd1b4-64a6-4d82-8234-187bd3826d22